fUST/lending_fUST_20260622
["ID","MTS","AMOUNT","RATE_DAILY","PERIOD"]
[426034910,1782126647000,-152.418649,0.00016941,2]
[426034923,1782126647000,-500.0,0.00016986,2]
[426034907,1782126647000,-152.418649,0.00016941,2]
[426034983,1782126647000,-500.0,0.00016986,2]
[426034914,1782126647000,-152.418649,0.00016941,2]
[426034905,1782126647000,-152.418649,0.00016941,2]
[426034898,1782126647000,-152.418649,0.00016941,2]
[426034912,1782126647000,-152.418649,0.00016941,2]
[426035013,1782126648000,-500.0,0.00016986,2]
[426035018,1782126648000,-500.0,0.00016986,2]
[426035022,1782126648000,-500.0,0.00016986,2]
[426035030,1782126648000,-717.31,0.00016986,2]
[426035020,1782126648000,-500.0,0.00016986,2]
[426035025,1782126648000,-500.0,0.00016986,2]
[426035016,1782126648000,-500.0,0.00016986,2]
[426035027,1782126648000,-5529.9,0.00016986,2]
[426035028,1782126648000,-500.0,0.00016986,2]
[426035034,1782126648000,-500.0,0.00016986,2]
[426035014,1782126648000,-500.0,0.00016986,2]
[426035023,1782126648000,-500.0,0.00016986,2]
[426035011,1782126648000,-28.22775005,0.00016986,2]
[426034994,1782126648000,-604.0,0.00016986,2]
[426035005,1782126648000,-500.0,0.00016986,2]
[426035003,1782126648000,-500.0,0.00016986,2]
[426035009,1782126648000,-379.01511469,0.00016986,2]
[426035001,1782126648000,-841.17,0.00016986,2]
[426034996,1782126648000,-500.0,0.00016986,2]
[426034989,1782126648000,-699.12,0.00016986,2]
[426034999,1782126648000,-500.0,0.00016986,2]
[426034991,1782126648000,-1313.33,0.00016986,2]
[426034998,1782126648000,-500.0,0.00016986,2]
[426034992,1782126648000,-500.0,0.00016986,2]
[426034987,1782126648000,-500.0,0.00016986,2]
[426034985,1782126648000,-660.28,0.00016986,2]
[426035032,1782126648000,-908.1,0.00016986,2]
[426035007,1782126648000,-92.75713526,0.00016986,2]
[426035038,1782126648000,-500.0,0.00016986,2]
[426035074,1782126648000,-500.0,0.0001726,2]
[426035039,1782126648000,-500.0,0.00016986,2]
[426035092,1782126648000,-338.63314512,0.0001726,2]
[426035090,1782126648000,-500.0,0.0001726,2]
[426035088,1782126648000,-643.52098783,0.0001726,2]
[426035086,1782126648000,-500.0,0.0001726,2]
[426035083,1782126648000,-500.0,0.0001726,2]
[426035085,1782126648000,-493.36976738,0.0001726,2]
[426035041,1782126648000,-1001.00882388,0.00017,2]
[426035079,1782126648000,-500.0,0.0001726,2]
[426035081,1782126648000,-500.0,0.0001726,2]
[426035076,1782126648000,-512.64,0.0001726,2]
[426035072,1782126648000,-1151.96,0.0001726,2]
[426035067,1782126648000,-500.0,0.0001726,2]
[426035065,1782126648000,-500.0,0.0001726,2]
[426035077,1782126648000,-500.0,0.0001726,2]
[426035069,1782126648000,-500.0,0.0001726,2]
[426035036,1782126648000,-500.0,0.00016986,2]
[426035063,1782126648000,-500.0,0.0001726,2]
[426035043,1782126648000,-1000.0,0.00017069,2]
[426035047,1782126648000,-500.0,0.0001726,2]
[426035051,1782126648000,-500.0,0.0001726,2]
[426035049,1782126648000,-500.0,0.0001726,2]
[426035045,1782126648000,-216.57717596,0.000172,2]
[426035055,1782126648000,-500.0,0.0001726,2]
[426035053,1782126648000,-500.0,0.0001726,2]
[426035059,1782126648000,-500.0,0.0001726,2]
[426035070,1782126648000,-566.43,0.0001726,2]
[426035061,1782126648000,-500.0,0.0001726,2]
[426035057,1782126648000,-500.0,0.0001726,2]
[426035544,1782127838000,-220.99883287,0.00015103,2]
[426035536,1782127838000,-446.3714436,0.00013326,7]
[426035545,1782127838000,-865.46,0.00015342,2]
[426035541,1782127838000,-797.0,0.00015,2]
[426035539,1782127838000,-445.0,0.00014099,2]
[426035537,1782127838000,-745.0,0.00014099,2]
[426035538,1782127838000,-195.651,0.00014099,2]
[426035532,1782127838000,-446.3714436,0.0001285,7]
[426035535,1782127838000,-244.47888887,0.00013233,14]
[426035534,1782127838000,-200.0,0.00013065,2]
[426035533,1782127838000,-521.73353126,0.00012934,2]
[426035530,1782127838000,-446.3714436,0.00012136,7]
[426035531,1782127838000,-446.3714436,0.00012493,7]
[426035529,1782127838000,-446.3714436,0.00011898,7]
[426035542,1782127838000,-500.0,0.00015036,2]
[426035540,1782127838000,-1842.0,0.00014099,2]
[426035543,1782127838000,-190.325517,0.00015068,2]
[426035562,1782127838000,-1863.54549277,0.00016337,2]
[426035546,1782127838000,-500.89691844,0.00015588,2]
[426035548,1782127838000,-151.5,0.00016164,2]
[426035561,1782127838000,-1863.54549277,0.00016337,2]
[426035563,1782127838000,-1863.54549277,0.00016337,2]
[426035564,1782127838000,-1900.81640263,0.00016337,2]
[426035558,1782127838000,-1863.54549277,0.00016337,2]
[426035559,1782127838000,-1863.54549277,0.00016337,2]
[426035556,1782127838000,-1863.54549277,0.00016337,2]
[426035557,1782127838000,-1863.54549277,0.00016337,2]
[426035560,1782127838000,-1863.54549277,0.00016337,2]
[426035555,1782127838000,-1863.54549277,0.00016337,2]
[426035553,1782127838000,-1863.54549277,0.00016337,2]
[426035551,1782127838000,-360.77967503,0.00016337,2]
[426035549,1782127838000,-1599.14980703,0.00016237,2]
[426035552,1782127838000,-1863.54549277,0.00016337,2]
[426035550,1782127838000,-158.17897251,0.00016336,2]
[426035547,1782127838000,-500.0,0.00015827,2]
[426035554,1782127838000,-1863.54549277,0.00016337,2]
[426035572,1782127839000,-0.08509798,0.00016337,2]
[426035565,1782127839000,-1900.81640263,0.00016337,2]
[426035566,1782127839000,-1900.81640263,0.00016337,2]
[426035568,1782127839000,-1900.81640263,0.00016337,2]
[426035569,1782127839000,-1900.81640263,0.00016337,2]
[426035567,1782127839000,-1900.81640263,0.00016337,2]
[426035571,1782127839000,-1900.81640263,0.00016337,2]
[426035570,1782127839000,-1900.81640263,0.00016337,2]
[426035573,1782127839000,-1387.56261895,0.00016337,2]
[426035579,1782127839000,-2518.58173346,0.00016337,2]
[426035581,1782127839000,-6929.50478851,0.00016338,2]
[426035577,1782127839000,-1900.81640263,0.00016337,2]
[426035574,1782127839000,-513.1686857,0.00016337,2]
[426035576,1782127839000,-1900.81640263,0.00016337,2]
[426035578,1782127839000,-2518.58173346,0.00016337,2]
[426035575,1782127839000,-1900.81640263,0.00016337,2]
[426035580,1782127839000,-5480.84733162,0.00016338,2]
[426035662,1782127841000,-5138.01985001,0.00016338,2]
[426036003,1782127843000,-3278.99187919,0.00016338,2]
[426035996,1782127843000,-4133.93835324,0.00016338,2]
[426035964,1782127843000,-1381.08291742,0.00016338,2]
[426036313,1782127846000,-57449.29563631,0.00016338,2]
[426036571,1782127873000,-4282.7265811,0.00013958,2]
[426036575,1782127992000,-499572.54395385,0.00020304,30]
[426036574,1782127992000,-417.15472785,0.00020304,30]
[426036576,1782127992000,-411.39665337,0.00021,30]
[426036577,1782127992000,-834.755836,0.00021735,30]
[426036579,1782127992000,-88270.0,0.00022,30]
[426036578,1782127992000,-194.91945837,0.000218,30]
[426036582,1782127993000,-404886.38170752,0.000228,30]
[426036580,1782127993000,-329.84766304,0.00022395,60]
[426036581,1782127993000,-5083.0,0.000227,31]
[426036592,1782127996000,-807.90016974,0.00023,30]
[426036591,1782127996000,-151.65102195,0.00023,30]
[426036590,1782127996000,-962.36,0.00022917,30]
[426036593,1782127996000,-214.96785904,0.00023022,30]
[426036589,1782127996000,-10000.0,0.00022879,30]
[426036586,1782127996000,-10000.0,0.00022868,30]
[426036587,1782127996000,-10000.0,0.00022879,30]
[426036588,1782127996000,-10000.0,0.00022879,30]
[426036585,1782127996000,-151.33,0.0002283,30]
[426036584,1782127996000,-72845.60301046,0.000228,30]
[426036597,1782127996000,-10000.0,0.00023034,30]
[426036594,1782127996000,-10000.0,0.00023025,30]
[426036602,1782127996000,-10000.0,0.00023145,30]
[426036596,1782127996000,-10000.0,0.00023034,30]
[426036595,1782127996000,-10000.0,0.00023034,30]
[426036607,1782127996000,-10000.0,0.00023374,30]
[426036608,1782127996000,-1931.85414391,0.00023379,120]
[426036605,1782127996000,-10000.0,0.00023373,30]
[426036603,1782127996000,-10000.0,0.000233,30]
[426036606,1782127996000,-10000.0,0.00023373,30]
[426036600,1782127996000,-1129.62,0.00023087,30]
[426036598,1782127996000,-5003.5,0.00023036,30]
[426036599,1782127996000,-10000.0,0.00023041,30]
[426036601,1782127996000,-1931.85414391,0.00023144,90]
[426036604,1782127996000,-153.0,0.000233,120]
[426036618,1782127997000,-259.63726718,0.00024569,120]
[426036622,1782127997000,-600000.0,0.00025,30]
[426036620,1782127997000,-202.76,0.000248,30]
[426036621,1782127997000,-1240.59222803,0.000249,120]
[426036619,1782127997000,-866.89894156,0.0002457,120]
[426036617,1782127997000,-200.0,0.000245,120]
[426036612,1782127997000,-166.0,0.00023416,30]
[426036614,1782127997000,-1931.85414391,0.00023729,120]
[426036616,1782127997000,-162.54490145,0.00024,120]
[426036611,1782127997000,-200.04801152,0.00023395,60]
[426036613,1782127997000,-361.74861382,0.00023487,30]
[426036623,1782127997000,-200.0,0.00025,120]
[426036610,1782127997000,-151.0,0.00023395,30]
[426036609,1782127997000,-161.76,0.00023382,30]
[426036615,1782127997000,-165.0,0.00023863,120]
[426036624,1782127997000,-171.18389625,0.00025,120]
[426036629,1782127997000,-1221.17080963,0.00028,30]
[426036625,1782127997000,-160.0,0.00025,30]
[426036642,1782127997000,-156857.32251367,0.0003,30]
[426036639,1782127997000,-153.0,0.000299,120]
[426036641,1782127997000,-1000.0,0.0003,120]
[426036638,1782127997000,-1078.89,0.00029529,30]
[426036640,1782127997000,-1191.04021375,0.0003,120]
[426036637,1782127997000,-215.0,0.00029178,33]
[426036636,1782127997000,-1078.89,0.00028823,30]
[426036635,1782127997000,-319.19676204,0.0002849,120]
[426036634,1782127997000,-190.09,0.00028432,30]
[426036632,1782127997000,-492.0,0.00028352,30]
[426036633,1782127997000,-300.0,0.000284,120]
[426036631,1782127997000,-1000.0,0.00028352,30]
[426036630,1782127997000,-1078.89,0.00028117,30]
[426036628,1782127997000,-1621.84134818,0.00028,120]
[426036627,1782127997000,-153.0,0.000266,120]
[426036626,1782127997000,-165.0,0.00025056,120]
[426036645,1782128005000,-5000.0,0.0003,120]
[426036644,1782128005000,-2812.95945831,0.0003,120]
[426036643,1782128005000,-443142.67748633,0.0003,30]
[426036663,1782128006000,-189.0,0.00030274,39]
[426036660,1782128006000,-328.1658245,0.00030137,120]
[426036659,1782128006000,-197.68366739,0.00030136,30]
[426036661,1782128006000,-846.01,0.00030137,30]
[426036662,1782128006000,-1078.89,0.00030234,30]
[426036656,1782128006000,-500.0,0.00030136,30]
[426036658,1782128006000,-500.0,0.00030136,30]
[426036654,1782128006000,-204.23776574,0.000301,120]
[426036655,1782128006000,-472.83581099,0.0003013,120]
[426036657,1782128006000,-500.0,0.00030136,30]
[426036651,1782128006000,-207.20809941,0.0003,120]
[426036650,1782128006000,-656.46539867,0.0003,120]
[426036652,1782128006000,-276.53350536,0.0003,120]
[426036647,1782128006000,-1957.67,0.0003,120]
[426036649,1782128006000,-584.47238852,0.0003,120]
[426036648,1782128006000,-8488.86871551,0.0003,30]
[426036646,1782128006000,-465.0,0.0003,120]
[426036665,1782128006000,-1078.89,0.0003094,30]
[426036667,1782128006000,-2323.45341975,0.00031,120]
[426036684,1782128006000,-999.0,0.00032876,120]
[426036666,1782128006000,-292.23,0.00031,30]
[426036664,1782128006000,-450.0,0.000309,120]
[426036685,1782128006000,-217.42,0.00032877,120]
[426036683,1782128006000,-1980.0,0.00032876,120]
[426036682,1782128006000,-397.4370373,0.000325,120]
[426036681,1782128006000,-210.0,0.00032466,53]
[426036680,1782128006000,-216.91,0.00032243,30]
[426036677,1782128006000,-327.37749795,0.00032,120]
[426036679,1782128006000,-300.0,0.00032,120]
[426036678,1782128006000,-170.0,0.00032,30]
[426036653,1782128006000,-160.0,0.0003,120]
[426036675,1782128006000,-450.0,0.000319,120]
[426036673,1782128006000,-5000.0,0.00031279,34]
[426036674,1782128006000,-165.0,0.0003137,46]
[426036676,1782128006000,-1001.0,0.00031945,120]
[426036672,1782128006000,-791.0,0.00031187,30]
[426036671,1782128006000,-1000.0,0.00031187,30]
[426036668,1782128006000,-683.10841195,0.00031,120]
[426036669,1782128006000,-160.0,0.00031,120]
[426036670,1782128006000,-160.0,0.00031,120]
[426036686,1782128007000,-220.05,0.00032877,120]
[426036687,1782128019000,-306.30362842,0.000111,2]
[426036688,1782128028000,-500.0,0.000231,10]
[426036690,1782128028000,-158.0,0.000231,10]
[426036689,1782128028000,-246.90298835,0.000231,10]
[426036691,1782128028000,-248.22092359,0.000231,10]
[426036694,1782128028000,-348.28443113,0.000231,10]
[426036692,1782128028000,-199.94606281,0.000231,12]
[426036695,1782128028000,-39760.68809081,0.000231,10]
[426036696,1782128028000,-479.33386843,0.000231,10]
[426036693,1782128028000,-500.0,0.000231,10]
[426036698,1782128038000,-89906.65569574,0.000231,7]
[426036697,1782128038000,-303175.6260096,0.000231,7]
[426036699,1782128038000,-961.42543634,0.000231,7]
[426036701,1782128038000,-5650.81416482,0.000231,7]
[426036700,1782128038000,-3000.0,0.000231,7]
[426036702,1782128038000,-158.29247988,0.000231,7]
[426036703,1782128038000,-181.01544061,0.000231,7]
[426036704,1782128038000,-19651.51628077,0.000231,7]
[426036706,1782128038000,-35693.34758609,0.000231,8]
[426036707,1782128038000,-4734.48712029,0.000231,7]
[426036709,1782128038000,-34807.81296941,0.000231,7]
[426036708,1782128038000,-4000.0,0.000231,7]
[426036711,1782128038000,-60177.15891321,0.000231,7]
[426036710,1782128038000,-183458.59249425,0.000231,7]
[426036705,1782128038000,-150.89927289,0.000231,7]
[426036712,1782128038000,-500.0,0.000231,7]
[426036714,1782128059000,2205.96662353,0.00023288,120]
[426036716,1782128075000,4282.7265811,0.00011,13]
[426036727,1782128176000,157.0,0.0002,120]
[426036741,1782128342000,782.27662137,0.00023287,120]
[426036740,1782128342000,782.27662137,0.0002316,120]
[426036828,1782129032000,-43.42073033,0.00014153,2]
[426036809,1782129032000,-105.80995859,0.00013503,2]
[426036812,1782129032000,-546.92177361,0.00013503,2]
[426036815,1782129032000,-958.0,0.00014153,2]
[426036817,1782129032000,-1415.60602956,0.00014153,2]
[426036808,1782129032000,-377.03394438,0.00013365,14]
[426036819,1782129032000,-381.63174838,0.00014153,2]
[426036823,1782129032000,-1028.96262026,0.00014153,2]
[426036821,1782129032000,-44.76222206,0.00014153,2]
[426036826,1782129032000,-390.03737974,0.00014153,2]
[426036813,1782129032000,-226.2504255,0.00013611,2]
[426036863,1782129038000,-820.992352,0.00014799,2]
[426036862,1782129038000,-7.68964744,0.00014799,2]
[426036861,1782129038000,-174.6,0.00014163,2]
[426036860,1782129038000,-401.57926967,0.00014153,2]
[426036959,1782129046000,-1372.14105757,0.00014899,2]
[426036952,1782129046000,-570.57408172,0.00014799,2]
[426036953,1782129046000,-2851.23376931,0.00014899,2]
[426036954,1782129046000,-1372.14105757,0.00014899,2]
[426036958,1782129046000,-1372.14105757,0.00014899,2]
[426036955,1782129046000,-252.54577252,0.00014899,2]
[426036960,1782129046000,-1372.14105757,0.00014899,2]
[426036956,1782129046000,-1372.14105757,0.00014899,2]
[426036961,1782129046000,-1372.14105757,0.00014899,2]
[426036963,1782129046000,-1223.51791589,0.00014899,2]
[426036957,1782129046000,-1372.14105757,0.00014899,2]
[426036962,1782129046000,-1372.14105757,0.00014899,2]
[426036985,1782129047000,-158538.90165551,0.00015,3]
[426036988,1782129047000,-334.1037921,0.00015725,2]
[426036989,1782129047000,-1399.25608114,0.00015973,2]
[426036993,1782129047000,-500.0,0.00016438,2]
[426036992,1782129047000,-166.36116529,0.000162,2]
[426036984,1782129047000,-936149.00737275,0.000149,2]
[426036990,1782129047000,-156.12857186,0.000162,2]
[426036991,1782129047000,-164.50877328,0.000162,2]
[426036995,1782129047000,-500.0,0.00016438,2]
[426036994,1782129047000,-500.0,0.00016438,2]
[426036986,1782129047000,-792.16883389,0.00015,3]
[426037005,1782129047000,-500.0,0.00016438,2]
[426037006,1782129047000,-500.0,0.00016438,2]
[426036996,1782129047000,-500.0,0.00016438,2]
[426037007,1782129047000,-500.0,0.00016438,2]
[426036998,1782129047000,-334.22887655,0.00016438,2]
[426036999,1782129047000,-500.0,0.00016438,2]
[426037004,1782129047000,-959.97,0.00016438,2]
[426036997,1782129047000,-560.20943167,0.00016438,2]
[426036987,1782129047000,-600.0,0.00015299,2]
[426036971,1782129047000,-1381.94206512,0.00014899,2]
[426036977,1782129047000,-1381.94206512,0.00014899,2]
[426037001,1782129047000,-500.0,0.00016438,2]
[426036965,1782129047000,-1372.14105757,0.00014899,2]
[426036966,1782129047000,-1372.14105757,0.00014899,2]
[426036964,1782129047000,-148.62314168,0.00014899,2]
[426036967,1782129047000,-1372.14105757,0.00014899,2]
[426036968,1782129047000,-1372.14105757,0.00014899,2]
[426036969,1782129047000,-1372.14105757,0.00014899,2]
[426036980,1782129047000,-1381.94206512,0.00014899,2]
[426036983,1782129047000,-58607.1324617,0.000149,2]
[426036982,1782129047000,-2470.74490428,0.00014899,2]
[426036981,1782129047000,-1381.94206512,0.00014899,2]
[426036970,1782129047000,-1381.94206512,0.00014899,2]
[426036972,1782129047000,-1381.94206512,0.00014899,2]
[426036974,1782129047000,-1381.94206512,0.00014899,2]
[426036973,1782129047000,-1381.94206512,0.00014899,2]
[426036975,1782129047000,-1381.94206512,0.00014899,2]
[426036976,1782129047000,-1381.94206512,0.00014899,2]
[426036978,1782129047000,-1381.94206512,0.00014899,2]
[426036979,1782129047000,-1381.94206512,0.00014899,2]
[426037003,1782129047000,-500.0,0.00016438,2]
[426037024,1782129047000,-528.5,0.00016438,2]
[426037000,1782129047000,-515.97192595,0.00016438,2]
[426037028,1782129047000,-577.74,0.00016438,2]
[426037033,1782129047000,-500.0,0.00016438,2]
[426037032,1782129047000,-611.73,0.00016438,2]
[426037034,1782129047000,-736.03,0.00016438,2]
[426037035,1782129047000,-1149.17,0.00016438,2]
[426037038,1782129047000,-500.0,0.00016438,2]
[426037039,1782129047000,-500.0,0.00016438,2]
[426037043,1782129047000,-500.0,0.00016438,2]
[426037040,1782129047000,-500.0,0.00016438,2]
[426037036,1782129047000,-500.0,0.00016438,2]
[426037041,1782129047000,-500.0,0.00016438,2]
[426037042,1782129047000,-500.0,0.00016438,2]
[426037044,1782129047000,-500.0,0.00016438,2]
[426037046,1782129047000,-500.0,0.00016438,2]
[426037045,1782129047000,-4838.66,0.00016438,2]
[426037049,1782129047000,-500.0,0.00016438,2]
[426037048,1782129047000,-500.0,0.00016438,2]
[426037047,1782129047000,-500.0,0.00016438,2]
[426037002,1782129047000,-500.0,0.00016438,2]
[426037030,1782129047000,-500.0,0.00016438,2]
[426037031,1782129047000,-500.0,0.00016438,2]
[426037037,1782129047000,-500.0,0.00016438,2]
[426037029,1782129047000,-500.0,0.00016438,2]
[426037009,1782129047000,-500.0,0.00016438,2]
[426037026,1782129047000,-500.0,0.00016438,2]
[426037020,1782129047000,-500.0,0.00016438,2]
[426037008,1782129047000,-500.0,0.00016438,2]
[426037010,1782129047000,-500.0,0.00016438,2]
[426037014,1782129047000,-500.0,0.00016438,2]
[426037019,1782129047000,-500.0,0.00016438,2]
[426037012,1782129047000,-500.0,0.00016438,2]
[426037016,1782129047000,-500.0,0.00016438,2]
[426037011,1782129047000,-500.0,0.00016438,2]
[426037018,1782129047000,-500.0,0.00016438,2]
[426037015,1782129047000,-500.0,0.00016438,2]
[426037017,1782129047000,-504.2454973,0.00016438,2]
[426037022,1782129047000,-610.51,0.00016438,2]
[426037023,1782129047000,-500.0,0.00016438,2]
[426037021,1782129047000,-500.0,0.00016438,2]
[426037027,1782129047000,-500.0,0.00016438,2]
[426037013,1782129047000,-500.0,0.00016438,2]
[426037025,1782129047000,-500.0,0.00016438,2]
[426037090,1782129048000,-500.0,0.00016712,2]
[426037094,1782129048000,-500.0,0.00016712,2]
[426037086,1782129048000,-500.0,0.00016712,2]
[426037095,1782129048000,-736.03,0.00016712,2]
[426037092,1782129048000,-500.0,0.00016712,2]
[426037087,1782129048000,-356.47668968,0.00016712,2]
[426037081,1782129048000,-500.0,0.00016712,2]
[426037089,1782129048000,-577.74,0.00016712,2]
[426037091,1782129048000,-500.0,0.00016712,2]
[426037085,1782129048000,-528.5,0.00016712,2]
[426037088,1782129048000,-500.0,0.00016712,2]
[426037077,1782129048000,-500.0,0.00016712,2]
[426037096,1782129048000,-1149.17,0.00016712,2]
[426037093,1782129048000,-611.73,0.00016712,2]
[426037106,1782129048000,-4838.66,0.00016712,2]
[426037097,1782129048000,-500.0,0.00016712,2]
[426037112,1782129048000,-627.65,0.00016712,2]
[426037110,1782129048000,-500.0,0.00016712,2]
[426037100,1782129048000,-500.0,0.00016712,2]
[426037111,1782129048000,-500.0,0.00016712,2]
[426037099,1782129048000,-500.0,0.00016712,2]
[426037103,1782129048000,-500.0,0.00016712,2]
[426037102,1782129048000,-500.0,0.00016712,2]
[426037109,1782129048000,-500.0,0.00016712,2]
[426037104,1782129048000,-500.0,0.00016712,2]
[426037107,1782129048000,-500.0,0.00016712,2]
[426037079,1782129048000,-500.0,0.00016712,2]
[426037108,1782129048000,-500.0,0.00016712,2]
[426037098,1782129048000,-500.0,0.00016712,2]
[426037083,1782129048000,-610.51,0.00016712,2]
[426037059,1782129048000,-500.0,0.00016712,2]
[426037075,1782129048000,-500.0,0.00016712,2]
[426037101,1782129048000,-500.0,0.00016712,2]
[426037056,1782129048000,-462.748161,0.00016543,2]
[426037057,1782129048000,-330.0091428,0.00016543,2]
[426037053,1782129048000,-500.0,0.00016438,2]
[426037050,1782129048000,-500.0,0.00016438,2]
[426037051,1782129048000,-627.65,0.00016438,2]
[426037052,1782129048000,-794.59,0.00016438,2]
[426037055,1782129048000,-326.2782388,0.00016538,2]
[426037054,1782129048000,-500.0,0.00016438,2]
[426037061,1782129048000,-500.0,0.00016712,2]
[426037058,1782129048000,-500.0,0.00016712,2]
[426037069,1782129048000,-500.0,0.00016712,2]
[426037065,1782129048000,-500.0,0.00016712,2]
[426037066,1782129048000,-959.97,0.00016712,2]
[426037067,1782129048000,-500.0,0.00016712,2]
[426037070,1782129048000,-500.0,0.00016712,2]
[426037060,1782129048000,-500.0,0.00016712,2]
[426037062,1782129048000,-500.0,0.00016712,2]
[426037064,1782129048000,-500.0,0.00016712,2]
[426037071,1782129048000,-502.12801059,0.00016712,2]
[426037063,1782129048000,-500.0,0.00016712,2]
[426037068,1782129048000,-500.0,0.00016712,2]
[426037073,1782129048000,-500.0,0.00016712,2]
[426037082,1782129048000,-500.0,0.00016712,2]
[426037074,1782129048000,-500.0,0.00016712,2]
[426037084,1782129048000,-500.0,0.00016712,2]
[426037072,1782129048000,-500.0,0.00016712,2]
[426037076,1782129048000,-500.0,0.00016712,2]
[426037078,1782129048000,-500.0,0.00016712,2]
[426037080,1782129048000,-500.0,0.00016712,2]
[426037105,1782129048000,-500.0,0.00016712,2]
[426037165,1782129048000,-500.0,0.00016986,2]
[426037114,1782129048000,-500.0,0.00016712,2]
[426037150,1782129048000,-500.0,0.00016986,2]
[426037149,1782129048000,-500.0,0.00016986,2]
[426037148,1782129048000,-500.0,0.00016986,2]
[426037152,1782129048000,-500.0,0.00016986,2]
[426037157,1782129048000,-500.0,0.00016986,2]
[426037151,1782129048000,-611.73,0.00016986,2]
[426037156,1782129048000,-500.0,0.00016986,2]
[426037159,1782129048000,-379.73595436,0.00016986,2]
[426037154,1782129048000,-1149.17,0.00016986,2]
[426037158,1782129048000,-500.0,0.00016986,2]
[426037155,1782129048000,-500.0,0.00016986,2]
[426037153,1782129048000,-736.03,0.00016986,2]
[426037161,1782129048000,-500.0,0.00016986,2]
[426037147,1782129048000,-577.74,0.00016986,2]
[426037160,1782129048000,-500.0,0.00016986,2]
[426037172,1782129048000,-500.0,0.00016986,2]
[426037170,1782129048000,-627.65,0.00016986,2]
[426037169,1782129048000,-500.0,0.00016986,2]
[426037168,1782129048000,-500.0,0.00016986,2]
[426037163,1782129048000,-500.0,0.00016986,2]
[426037164,1782129048000,-4838.66,0.00016986,2]
[426037162,1782129048000,-500.0,0.00016986,2]
[426037167,1782129048000,-500.0,0.00016986,2]
[426037166,1782129048000,-500.0,0.00016986,2]
[426037173,1782129048000,-500.0,0.00016986,2]
[426037175,1782129048000,-1399.25608114,0.00017146,2]
[426037176,1782129048000,-958.0,0.00017153,2]
[426037174,1782129048000,-1497.7918534,0.00017063,2]
[426037171,1782129048000,-794.59,0.00016986,2]
[426037145,1782129048000,-500.0,0.00016986,2]
[426037113,1782129048000,-794.59,0.00016712,2]
[426037144,1782129048000,-528.5,0.00016986,2]
[426037124,1782129048000,-500.0,0.00016986,2]
[426037115,1782129048000,-500.0,0.00016712,2]
[426037117,1782129048000,-652.16386622,0.00016915,2]
[426037119,1782129048000,-500.0,0.00016986,2]
[426037125,1782129048000,-500.0,0.00016986,2]
[426037118,1782129048000,-500.0,0.00016986,2]
[426037116,1782129048000,-720.0,0.00016829,2]
[426037122,1782129048000,-500.0,0.00016986,2]
[426037143,1782129048000,-500.0,0.00016986,2]
[426037123,1782129048000,-500.0,0.00016986,2]
[426037121,1782129048000,-500.0,0.00016986,2]
[426037127,1782129048000,-500.0,0.00016986,2]
[426037126,1782129048000,-959.97,0.00016986,2]
[426037130,1782129048000,-500.0,0.00016986,2]
[426037120,1782129048000,-500.0,0.00016986,2]
[426037128,1782129048000,-500.0,0.00016986,2]
[426037129,1782129048000,-500.0,0.00016986,2]
[426037142,1782129048000,-610.51,0.00016986,2]
[426037146,1782129048000,-500.0,0.00016986,2]
[426037139,1782129048000,-500.0,0.00016986,2]
[426037140,1782129048000,-500.0,0.00016986,2]